bitfinex/quotes_SOLUSD_20250830
["timestamp","ask_amount","ask_price","bid_price","bid_amount"]
[1756546477581,4.76620653,202.21,202.16,4.94633472]
[1756546477890,4.76620653,202.2,202.17,0.69]
[1756546478391,4.76620653,202.21,202.17,0.69]
[1756546479284,4.76620653,202.21,202.17,5.63616892]
[1756546479485,4.76620653,202.22,202.18,0.69]
[1756546481368,4.76620653,202.21,202.18,0.69]
[1756546481575,4.76620653,202.2,202.18,0.69]
[1756546482280,4.76620653,202.21,202.19,0.69]
[1756546482486,4.76620653,202.21,202.16,4.94635116]
[1756546482684,26.0,202.17,202.14,0.03]
[1756546482987,4.76620653,202.16,202.14,0.03]
[1756546483664,4.76620653,202.15,202.14,0.72]
[1756546483994,39.18,202.19,202.14,0.03]
[1756546484199,4.76620653,202.15,202.14,0.72]
[1756546484564,4.76620653,202.16,202.14,0.72]
[1756546484785,4.76620653,202.15,202.14,0.72]
[1756546484989,39.18,202.19,202.14,0.72]
[1756546485184,4.76620653,202.15,202.14,0.72]
[1756546486688,39.18,202.19,202.14,0.72]
[1756546486876,4.76620653,202.18,202.14,0.72]
[1756546487081,4.76620653,202.17,202.14,0.72]
[1756546487492,4.76620653,202.16,202.14,0.03]
[1756546487791,4.76620653,202.16,202.14,0.72]
[1756546487978,4.76620653,202.15,202.14,0.03]
[1756546488778,4.76620653,202.15,202.14,0.72]
[1756546489097,43.94620653,202.18,202.14,0.72]
[1756546489283,4.76620653,202.17,202.14,0.72]
[1756546489483,4.76620653,202.17,202.14,0.03]
[1756546489793,4.76620653,202.16,202.15,0.69]
[1756546490801,43.94620653,202.2,202.15,5.63682166]
[1756546490998,4.76620653,202.2,202.16,0.69]
[1756546491206,4.76620653,202.19,202.17,0.69]
[1756546491496,39.18,202.21,202.18,0.69]
[1756546491696,26.14216157,202.26,202.19,0.69]
[1756546491895,42.8027766,202.24,202.19,0.69]
[1756546492079,4.76620653,202.21,202.2,0.69]
[1756546492402,4.76620653,202.21,202.16,4.76620653]
[1756546492403,4.76620653,202.21,202.18,0.69]
[1756546492572,4.76620653,202.2,202.14,0.03]
[1756546492773,39.18,202.24,202.19,0.69]
[1756546493088,4.76620653,202.2,202.19,0.69]
[1756546493900,0.06,202.25,202.2,0.69]
[1756546494087,4.76620653,202.24,202.2,0.69]
[1756546494570,0.06,202.25,202.21,0.69]
[1756546494776,4.76620653,202.23,202.22,0.69]
[1756546494976,0.06,202.25,202.22,0.69]
[1756546495185,0.06,202.25,202.23,0.69]
[1756546495593,0.06,202.25,202.2,4.766207]
[1756546495594,0.06,202.25,202.24,0.69]
[1756546495980,4.82620653,202.25,202.24,0.69]
[1756546496292,0.06,202.25,202.24,0.69]
[1756546496494,0.06,202.25,202.24,5.63462025]
[1756546497909,0.06,202.25,202.24,4.94462025]
[1756546498099,0.06,202.25,202.24,5.63462025]
[1756546499321,26.0,202.22,202.2,4.766207]
[1756546499624,11.65831117,202.21,202.16,0.69]
[1756546499825,4.76620653,202.19,202.16,5.63652979]
[1756546500130,4.76620653,202.18,202.17,0.69]
[1756546500725,4.76620653,202.18,202.14,0.72]
[1756546501018,4.76620653,202.15,202.14,0.03]
[1756546501223,44.14620653,202.15,202.14,0.03]
[1756546501388,51.33652048,202.15,202.14,0.03]
[1756546501590,51.33532108,202.15,202.14,0.03]
[1756546501823,56.28214274,202.15,202.11,0.03]
[1756546502111,4.76620653,202.12,202.11,0.03]
[1756546505107,49.68875328,202.12,202.11,0.03]
[1756546505305,52.94794738,202.12,202.11,0.03]
[1756546505513,52.94695185,202.12,202.11,0.03]
[1756546506009,52.94653514,202.12,202.11,0.03]
[1756546506223,49.68734104,202.12,202.11,0.03]
[1756546506437,52.94330857,202.12,202.11,0.03]
[1756546506792,53.08547014,202.12,202.04,0.72]
[1756546506990,9.53241306,202.1,202.04,0.72]
[1756546507219,14.82116342,202.1,202.04,0.72]
[1756546508120,5.28875036,202.1,202.04,0.72]
[1756546508350,14.82116342,202.1,202.04,5.6694643]
[1756546508618,14.82116342,202.1,202.06,0.72]
[1756546509192,54.22116342,202.1,202.07,0.72]
[1756546509615,26.0,202.1,202.09,0.75]
[1756546509818,30.76620653,202.1,202.09,0.75]
[1756546510513,30.76620653,202.1,202.09,0.03]
[1756546512121,30.76620653,202.1,202.09,0.75]
[1756546512446,26.0,202.1,202.09,0.75]
[1756546512646,30.76620653,202.1,202.09,0.75]
[1756546513156,10.92318864,202.15,202.09,0.75]
[1756546513333,4.76620653,202.11,202.09,0.75]
[1756546513832,0.06,202.15,202.09,0.75]
[1756546514024,4.76620653,202.13,202.09,0.75]
[1756546514225,4.76620653,202.14,202.1,4.94804552]
[1756546514435,4.76620653,202.14,202.11,0.72]
[1756546514640,0.06,202.15,202.11,0.72]
[1756546514840,4.76620653,202.14,202.11,0.72]
[1756546515027,4.76620653,202.14,202.11,5.668046]
[1756546515231,4.76620653,202.12,202.09,4.9782728]
[1756546515539,0.06,202.15,202.09,4.9782728]
[1756546515540,0.06,202.15,202.09,9.7444788]
[1756546515733,4.76620653,202.13,202.1,0.72]
[1756546516237,4.76620653,202.13,202.11,4.9478007]
[1756546516435,4.76620653,202.13,202.12,0.72]
[1756546516618,4.76620653,202.13,202.11,4.9478007]
[1756546516822,4.76620653,202.12,202.11,5.6678007]
[1756546518039,0.06,202.15,202.11,5.6678007]
[1756546518231,0.06,202.15,202.09,4.796206]
[1756546518232,0.06,202.15,202.12,0.72]
[1756546518629,4.82620653,202.15,202.12,0.72]
[1756546518825,4.82620653,202.15,202.1,9.71425205]
[1756546519031,4.82620653,202.15,202.13,0.72]
[1756546519537,4.82620653,202.15,202.14,0.72]
[1756546521445,0.06,202.15,202.14,0.72]
[1756546521653,4.82620653,202.15,202.14,0.72]
[1756546522327,0.06,202.15,202.14,5.66706638]
[1756546522524,0.06,202.18,202.16,4.94657696]
[1756546523026,0.06,202.18,202.17,0.72]
[1756546523223,0.06,202.18,202.17,5.48620653]
[1756546523449,0.06,202.18,202.17,23.84800654]
[1756546524752,0.06,202.18,202.17,10.43253829]
[1756546524931,0.06,202.18,202.17,5.486206]
[1756546525131,0.06,202.18,202.17,0.72]
[1756546526038,0.06,202.18,202.14,9.71303447]
[1756546526259,0.06,202.18,202.16,0.72]
[1756546526949,4.82620653,202.18,202.14,4.826206]
[1756546527129,4.82620653,202.18,202.13,9.71349807]
[1756546527330,4.82620653,202.18,202.14,0.72]
[1756546527652,4.82620653,202.18,202.15,0.72]
[1756546528237,0.06,202.2,202.15,0.72]
[1756546528437,0.06,202.2,202.16,5.48620653]
[1756546528749,0.06,202.2,202.16,0.72]
[1756546529127,4.76620653,202.19,202.16,0.72]
[1756546529750,4.76620653,202.19,202.14,5.48620653]
[1756546529951,4.76620653,202.19,202.15,0.72]
[1756546530263,0.06,202.2,202.16,5.48620653]
[1756546530633,0.06,202.2,202.17,0.72]
[1756546531037,0.06,202.2,202.16,4.76620653]
[1756546531246,0.06,202.2,202.18,0.68]
[1756546531443,4.76620653,202.19,202.16,0.68]
[1756546531762,4.76620653,202.17,202.1,0.03]
[1756546531958,4.76620653,202.13,202.1,0.03]
[1756546532170,4.76620653,202.12,202.1,0.03]
[1756546533437,26.36,202.16,202.1,0.71]
[1756546533771,4.76620653,202.16,202.11,0.68]
[1756546534074,4.76620653,202.15,202.1,0.03]
[1756546534365,4.76620653,202.13,202.1,0.03]
[1756546534672,4.76620653,202.14,202.11,0.68]
[1756546534875,4.76620653,202.13,202.1,0.03]
[1756546535066,4.76620653,202.13,202.1,0.71]
[1756546535369,4.76620653,202.13,202.1,4.97799998]
[1756546535558,4.76620653,202.13,202.11,0.68]
[1756546535951,4.76620653,202.13,202.1,0.03]
[1756546536162,4.76620653,202.13,202.1,0.71]
[1756546536552,4.76620653,202.12,202.1,0.71]
[1756546537573,26.0,202.17,202.11,0.68]
[1756546537875,4.76620653,202.14,202.11,0.68]
[1756546538654,26.0,202.17,202.11,5.62758953]
[1756546538856,4.76620653,202.14,202.11,5.62758953]
[1756546539659,4.76620653,202.15,202.11,5.62758953]
[1756546539861,4.76620653,202.14,202.11,5.62758953]
[1756546540361,4.76620653,202.14,202.12,0.68]
[1756546542156,4.76620653,202.14,202.12,5.62746554]
[1756546542889,4.76620653,202.14,202.12,4.94746554]
[1756546543385,4.76620653,202.14,202.11,4.9478007]
[1756546543681,4.76620653,202.14,202.11,5.6278007]
[1756546543886,0.42,202.18,202.13,4.76620653]
[1756546543887,4.82620653,202.18,202.13,4.76620653]
[1756546544072,4.82620653,202.18,202.14,0.68]
[1756546544281,0.06,202.18,202.13,4.76620653]
[1756546544594,0.06,202.18,202.15,0.68]
[1756546544955,0.06,202.18,202.16,0.68]
[1756546545383,0.06,202.18,202.17,4.94633229]
[1756546545680,0.06,202.18,202.17,5.62633229]
[1756546546381,0.06,202.18,202.17,15.21874582]
[1756546546761,0.06,202.18,202.14,0.68]
[1756546546960,0.06,202.18,202.15,0.68]
[1756546547464,0.06,202.18,202.16,5.6263689]
[1756546549063,0.06,202.18,202.17,0.68]
[1756546549286,0.06,202.18,202.17,5.44620653]
[1756546550375,0.06,202.18,202.17,10.39253882]
[1756546552169,0.06,202.18,202.17,23.98813283]
[1756546553261,0.06,202.18,202.17,5.62633229]
[1756546553470,4.82620653,202.18,202.15,4.94682166]
[1756546553892,0.06,202.18,202.15,4.94682166]
[1756546554182,0.06,202.18,202.15,5.62682166]
[1756546554780,0.06,202.18,202.16,0.68]
[1756546556292,0.06,202.18,202.15,4.94682166]
[1756546556491,0.06,202.18,202.15,5.62682166]
[1756546556673,0.06,202.18,202.16,0.68]
[1756546557402,0.06,202.18,202.17,0.68]
[1756546558289,0.06,202.18,202.15,9.71302819]
[1756546558491,0.06,202.18,202.14,4.97706638]
[1756546558694,0.06,202.18,202.15,5.44620653]
[1756546559405,0.06,202.18,202.15,4.76620653]
[1756546559600,0.06,202.18,202.16,0.68]
[1756546560277,4.82620653,202.18,202.14,0.03]
[1756546560483,4.76620653,202.16,202.14,0.03]
[1756546561399,26.0,202.17,202.14,4.97704376]
[1756546561581,0.06,202.18,202.15,0.67]
[1756546561787,0.06,202.18,202.15,5.43620653]
[1756546561987,0.06,202.18,202.16,0.67]
[1756546562181,0.06,202.18,202.17,4.94633229]
[1756546562398,0.06,202.18,202.17,5.61633229]
[1756546562597,0.06,202.18,202.17,23.97813283]
[1756546563102,0.06,202.18,202.17,25.96034183]
[1756546563980,0.06,202.18,202.17,21.1941353]
[1756546564197,0.06,202.18,202.17,19.2119263]
[1756546564497,0.06,202.18,202.17,23.97813283]
[1756546565525,0.06,202.18,202.17,24.1202944]
[1756546565694,1e-08,202.18,202.17,24.1202944]
[1756546566093,0.06,202.2,202.18,13.73775558]
[1756546566094,1e-08,202.2,202.18,13.73775558]
[1756546566309,1e-08,202.2,202.19,62.68980512]
[1756546566518,1e-08,202.2,202.19,63.35980512]
[1756546566694,1e-08,202.21,202.2,13.73775558]
[1756546566900,1e-08,202.21,202.2,14.40775558]
[1756546567417,1e-08,202.23,202.22,39.73775558]
[1756546567616,1e-08,202.23,202.22,44.50396211]
[1756546567789,1e-08,202.23,202.22,45.17396211]
[1756546568497,1e-08,202.23,202.22,23.97690982]
[1756546568693,1e-08,202.23,202.22,63.21690982]
[1756546569223,1e-08,202.23,202.22,63.35907139]
[1756546569417,0.06,202.28,202.23,13.73775558]
[1756546569596,0.06,202.28,202.27,18.36180054]
[1756546569800,0.06,202.28,202.27,57.64180054]
[1756546569998,0.06,202.28,202.27,58.31180054]
[1756546570194,0.06,202.3,202.28,13.59559401]
[1756546570499,0.06,202.3,202.29,9.70960462]
[1756546570699,0.06,202.3,202.29,10.37960462]
[1756546571610,0.06,202.28,202.27,4.766207]
[1756546571793,0.06,202.28,202.24,0.67]
[1756546571794,0.06,202.28,202.26,9.71033784]
[1756546572000,0.06,202.28,202.26,14.47654484]
[1756546572197,0.06,202.28,202.27,5.43620653]
[1756546572501,0.06,202.28,202.27,10.38009341]
[1756546572703,0.06,202.28,202.27,57.83948089]
[1756546572902,0.06,202.28,202.27,4.94388688]
[1756546573310,0.06,202.28,202.27,9.71009341]
[1756546573828,0.06,202.28,202.22,12.36228707]
[1756546573829,0.14216157,202.22,202.14,0.03]
[1756546574023,4.76620653,202.21,202.14,0.03]
[1756546574199,0.26,202.21,202.14,0.03]
[1756546574403,4.76620653,202.18,202.14,0.03]
[1756546574600,4.76620653,202.19,202.14,4.79620653]
[1756546574924,4.76620653,202.2,202.14,4.79620653]
[1756546575118,4.76620653,202.2,202.15,4.76620653]
[1756546575314,4.76620653,202.2,202.15,5.43620653]
[1756546575712,4.76620653,202.2,202.15,0.67]
[1756546575933,4.76620653,202.19,202.14,18.39180054]
[1756546576121,4.76620653,202.18,202.14,13.62559401]
[1756546576320,0.26,202.2,202.14,13.62559401]
[1756546576321,4.76620653,202.17,202.14,13.62559401]
[1756546576630,4.76620653,202.17,202.15,4.94682166]
[1756546577523,7.62360994,202.18,202.15,4.94682166]
[1756546578406,0.26,202.2,202.15,4.94682166]
[1756546578627,7.62360994,202.18,202.15,4.94682166]
[1756546578808,7.62360994,202.17,202.15,4.94682166]
[1756546579618,0.26,202.2,202.15,4.94682166]
[1756546579824,7.62360994,202.18,202.15,4.94682166]
[1756546580128,7.62360994,202.18,202.15,5.61682166]
[1756546580328,7.62360994,202.18,202.15,4.94682166]
[1756546580531,7.62360994,202.18,202.16,0.67]
[1756546580737,7.62360994,202.19,202.16,0.67]
[1756546580935,7.62360994,202.2,202.17,4.94633229]
[1756546581229,7.62360994,202.22,202.18,14.26559401]
[1756546582329,7.62360994,202.23,202.2,4.94559841]
[1756546582521,7.62360994,202.25,202.21,0.67]
[1756546582923,0.06,202.28,202.22,13.59559401]
[1756546583125,0.06,202.28,202.24,21.21920395]
[1756546583433,0.06,202.28,202.26,13.59559401]
[1756546584414,0.06,202.28,202.27,4.94388688]
[1756546584709,0.06,202.28,202.27,19.20948089]
[1756546585036,0.06,202.28,202.27,26.83309083]
[1756546585330,0.06,202.28,202.27,26.83309089]
[1756546585539,0.06,202.28,202.27,34.45670083]
[1756546586818,1e-08,202.28,202.27,34.45670083]
[1756546590139,1e-08,202.28,202.27,7.62361]
[1756546590323,7.88360995,202.28,202.19,13.03415539]
[1756546590521,7.62360994,202.24,202.2,4.94559841]
[1756546590719,7.62360994,202.24,202.2,18.54119242]
[1756546591238,0.26,202.27,202.21,9.60542594]
[1756546591537,7.62360994,202.25,202.22,4.94510928]
[1756546591838,7.62360994,202.24,202.22,4.94510928]
[1756546592338,0.26,202.27,202.22,4.94510928]
[1756546592523,7.62360994,202.25,202.22,4.94510928]
[1756546592926,7.62360994,202.26,202.22,4.94510928]
[1756546593131,7.62360994,202.26,202.23,0.69]
[1756546593326,7.62360994,202.26,202.22,4.94510928]
[1756546593523,7.62360994,202.25,202.22,4.94510928]
[1756546595444,7.62360994,202.25,202.22,5.63510928]
[1756546596226,1e-08,202.28,202.22,5.63510928]
[1756546596436,7.62360994,202.26,202.22,17.99788249]
[1756546596756,7.62360994,202.26,202.23,0.69]
[1756546597432,7.62360994,202.27,202.24,4.94462025]
[1756546597628,1e-08,202.28,202.25,0.69]
[1756546597947,1e-08,202.28,202.25,8.31360994]
[1756546598132,1e-08,202.28,202.27,21.21920395]
[1756546598647,1e-08,202.28,202.27,61.26920395]
[1756546599428,1e-08,202.28,202.27,58.58948089]
[1756546600453,7.62360994,202.28,202.27,4.94388688]
[1756546600637,7.88360994,202.28,202.27,4.94388688]
[1756546601040,7.62360994,202.28,202.27,4.94388688]
[1756546601239,7.62360994,202.3,202.27,4.94388688]
[1756546601454,7.62360994,202.3,202.26,4.94413131]
[1756546602540,7.62360994,202.29,202.26,4.94413131]
[1756546602742,7.62360994,202.28,202.26,4.94413131]
[1756546603139,0.26,202.32,202.26,4.94413131]
[1756546603140,7.62360994,202.3,202.26,4.94413131]
[1756546603540,7.62360994,202.3,202.26,13.59559401]
[1756546603839,7.62360994,202.3,202.27,0.69]
[1756546604047,7.62360994,202.31,202.27,0.69]
[1756546604348,7.62360994,202.31,202.26,13.59559401]
[1756546604544,7.62360994,202.31,202.26,14.28559401]
[1756546605252,7.62360994,202.3,202.27,0.69]
[1756546605432,4.75852937,202.3,202.27,0.69]
[1756546605634,4.75852937,202.32,202.28,5.63364247]
[1756546606046,4.75852937,202.32,202.29,0.69]
[1756546606431,0.06,202.3,202.29,0.69]
[1756546607251,0.06,202.3,202.28,22.06127802]
[1756546607447,0.06,202.3,202.28,17.99274865]
[1756546608259,0.06,202.3,202.28,17.30274865]
[1756546608474,0.06,202.3,202.28,17.99274865]
[1756546608835,0.06,202.3,202.29,14.28559401]
[1756546609345,4.81852937,202.3,202.27,4.94388508]
[1756546609552,4.81852937,202.3,202.25,4.94437577]
[1756546609771,4.81852937,202.3,202.25,17.9953152]
[1756546610583,4.75852937,202.29,202.25,17.9953152]
[1756546610769,0.06,202.3,202.27,4.75852937]
[1756546610971,4.75852937,202.28,202.25,4.94437577]
[1756546611273,4.75852937,202.27,202.25,4.94437577]
[1756546611785,4.75852937,202.27,202.24,4.94462025]
[1756546612680,4.75852937,202.29,202.25,0.69]
[1756546612879,4.75852937,202.28,202.25,0.69]
[1756546613094,0.06,202.3,202.24,4.94462025]
[1756546613095,4.75852937,202.29,202.26,0.69]
[1756546613399,0.06,202.3,202.27,0.69]
[1756546613770,0.06,202.3,202.28,0.69]
[1756546613971,0.06,202.3,202.29,4.94339809]
[1756546615113,0.06,202.3,202.29,19.2289921]
[1756546615981,0.06,202.3,202.29,23.98752147]
[1756546616401,0.06,202.3,202.29,19.2289921]
[1756546616694,1e-08,202.3,202.29,63.28752147]
[1756546619101,1e-08,202.3,202.29,58.5289921]
[1756546619299,1e-08,202.3,202.29,63.28752147]
[1756546619679,1e-08,202.3,202.29,58.5289921]
[1756546620695,1e-08,202.3,202.29,57.8389921]
[1756546620899,1e-08,202.3,202.29,58.5289921]
[1756546621603,1e-08,202.3,202.29,63.28752147]
[1756546623376,1e-08,202.3,202.29,63.42968304]
[1756546623579,0.06,202.35,202.3,13.73775558]
[1756546623807,0.06,202.35,202.33,4.75852937]
[1756546624002,0.06,202.35,202.34,43.97852937]
[1756546624301,0.06,202.35,202.34,57.57412338]
[1756546624507,0.06,202.35,202.34,58.25412338]
[1756546625503,0.06,202.35,202.34,63.19629991]
[1756546628208,0.06,202.38,202.35,13.73775558]
[1756546628386,0.06,202.38,202.37,18.35412338]
[1756546629008,0.06,202.38,202.37,19.03412338]
[1756546629500,0.06,202.38,202.37,23.97556726]
[1756546629706,0.06,202.42,202.38,18.35412338]
[1756546629880,0.06,202.42,202.39,52.79559401]
[1756546630076,0.06,202.42,202.39,53.47559401]
[1756546631077,0.06,202.42,202.37,4.94144388]
[1756546631305,0.32,202.42,202.38,52.79559401]
[1756546631477,0.32,202.42,202.34,99.3743157]
[1756546631478,4.81852937,202.4,202.34,99.3743157]
[1756546631678,4.75852937,202.39,202.35,44.14193229]
[1756546632010,4.75852937,202.38,202.35,44.14193229]
[1756546632318,4.75852937,202.39,202.35,44.14193229]
[1756546632807,0.06,202.4,202.35,61.25529239]
[1756546632996,0.06,202.4,202.36,5.43852937]
[1756546633297,0.06,202.4,202.37,39.2]
[1756546633616,0.06,202.4,202.38,23.2953231]
[1756546633806,0.06,202.4,202.39,39.2]
[1756546635005,0.06,202.4,202.39,58.23412338]
[1756546635303,0.06,202.4,202.39,53.47559401]
[1756546635687,0.06,202.4,202.39,58.41654959]
[1756546636486,0.06,202.4,202.39,63.17507896]
[1756546636714,0.06,202.4,202.39,58.41654959]
[1756546637595,0.2,202.41,202.4,13.59559401]
[1756546637909,0.2,202.41,202.4,23.97483484]
[1756546638498,0.2,202.41,202.4,19.21630547]
[1756546639000,0.2,202.41,202.4,5.62071146]
[1756546640686,0.2,202.41,202.4,23.97483484]
[1756546641307,0.2,202.41,202.4,19.21630547]
[1756546641513,0.2,202.41,202.38,1.980051]
[1756546641514,5.21852937,202.41,202.38,1.980051]
[1756546641715,4.75852937,202.39,202.35,4.94182142]
[1756546642021,5.01852937,202.4,202.35,4.94182142]
[1756546642022,4.75852937,202.36,202.35,4.94182142]
[1756546642714,4.75852937,202.36,202.34,4.94217653]
[1756546643907,4.75852937,202.35,202.34,4.94217653]
[1756546644498,4.75852937,202.35,202.34,4.97217653]
[1756546645793,0.26,202.38,202.34,4.97217653]
[1756546645996,4.75852937,202.35,202.34,0.03]
[1756546647720,5.01852937,202.35,202.34,0.03]
[1756546648091,9.96046166,202.35,202.34,0.03]
[1756546648293,0.26,202.35,202.34,0.03]
[1756546648500,5.01852937,202.35,202.34,0.03]
[1756546649515,9.96046166,202.35,202.34,0.03]
[1756546650419,5.01852937,202.35,202.34,0.03]
[1756546650902,31.01852937,202.35,202.34,0.03]
[1756546651291,4.75852937,202.35,202.34,0.03]
[1756546651511,30.75852937,202.35,202.34,0.03]
[1756546653918,26.0,202.35,202.34,0.03]
[1756546654121,30.75852937,202.35,202.34,0.03]
[1756546657195,4.75852937,202.35,202.34,0.03]
[1756546657499,4.75852937,202.35,202.34,0.73]
[1756546659022,4.75852937,202.36,202.34,5.67217653]
[1756546659221,26.0,202.38,202.35,0.7]
[1756546659222,4.75852937,202.37,202.35,0.7]
[1756546659424,0.2,202.41,202.35,0.7]
[1756546659629,0.2,202.41,202.37,4.75852937]
[1756546659822,0.2,202.41,202.38,0.7]
[1756546660129,0.2,202.41,202.38,5.45852937]
[1756546660301,0.2,202.41,202.4,4.94071146]
[1756546660705,0.2,202.41,202.4,5.64071146]
[1756546664235,0.2,202.41,202.4,10.39924083]
[1756546664433,0.2,202.41,202.4,19.23630547]
[1756546664622,0.2,202.41,202.4,5.64071146]
[1756546664932,4.95852937,202.41,202.38,5.64099079]
[1756546665138,4.75852937,202.4,202.39,0.7]
[1756546666532,0.2,202.41,202.4,4.94071146]
[1756546666733,0.2,202.41,202.4,5.64071146]
[1756546667327,0.2,202.41,202.4,19.23630547]
[1756546667527,0.2,202.41,202.4,23.99483484]
[1756546667904,0.06,202.42,202.4,23.99483484]
[1756546668104,0.06,202.42,202.41,5.45852937]
[1756546669026,0.06,202.42,202.41,10.39899673]
[1756546669234,0.06,202.42,202.41,5.64046736]
[1756546670323,4.81852937,202.42,202.41,4.94046736]
[1756546671150,4.81852937,202.42,202.39,19.23633639]
[1756546671323,4.81852937,202.42,202.4,0.7]
[1756546671628,4.75852937,202.41,202.4,0.7]
[1756546671835,4.75852937,202.41,202.39,4.94074238]
[1756546672153,4.75852937,202.41,202.4,0.7]
[1756546672837,4.81852937,202.42,202.4,5.64060561]
[1756546673533,0.06,202.42,202.4,4.94060561]
[1756546673732,0.06,202.42,202.41,0.7]
[1756546674050,0.06,202.42,202.4,4.94060561]
[1756546674663,0.06,202.42,202.41,0.7]
[1756546675161,0.06,202.42,202.41,5.64046736]
[1756546676440,0.06,202.42,202.41,4.94046736]
[1756546677252,0.06,202.42,202.4,4.94071146]
[1756546677547,0.06,202.42,202.4,5.64071146]
[1756546678151,0.06,202.42,202.41,0.7]
[1756546679550,0.06,202.42,202.41,5.64046736]
[1756546680252,0.06,202.42,202.41,4.94046736]
[1756546680639,0.06,202.42,202.41,5.64046736]
[1756546681327,0.06,202.42,202.39,4.97079557]
[1756546681735,4.81852937,202.42,202.4,0.69]
[1756546683138,0.06,202.42,202.4,5.63057557]
[1756546683939,5.01852937,202.41,202.39,0.03]
[1756546684147,35.51705874,202.4,202.39,0.03]
[1756546684454,37.90585255,202.4,202.39,0.03]
[1756546684652,42.66438192,202.4,202.39,0.03]
[1756546685035,35.77705874,202.4,202.39,0.03]
[1756546685236,42.66544342,202.4,202.39,0.03]
[1756546686447,47.60615488,202.4,202.39,0.03]
[1756546687240,42.66544342,202.4,202.39,0.03]
[1756546688055,34.02157728,202.4,202.39,0.03]
[1756546688246,0.06,202.42,202.39,0.03]
[1756546688645,30.75852937,202.41,202.39,0.03]
[1756546688848,4.75852937,202.4,202.39,0.03]
[1756546689234,4.75852937,202.4,202.39,0.72]
[1756546689453,4.81852937,202.42,202.4,4.94071146]
[1756546689643,0.06,202.42,202.41,0.69]
[1756546689844,4.81852937,202.42,202.39,0.72]
[1756546690035,4.81852937,202.42,202.4,0.69]
[1756546690346,0.06,202.42,202.41,0.69]
[1756546691336,0.06,202.42,202.39,4.97090314]
[1756546691542,4.75852937,202.41,202.39,0.03]
[1756546691741,4.75852937,202.41,202.39,0.72]
[1756546691954,4.75852937,202.41,202.39,0.03]
[1756546692139,4.75852937,202.4,202.39,0.03]
[1756546692543,4.75852937,202.41,202.39,0.72]
[1756546692744,4.75852937,202.41,202.4,0.69]
[1756546692943,4.81852937,202.42,202.4,0.69]
[1756546693746,4.81852937,202.42,202.4,5.63053189]
[1756546693957,4.75852937,202.41,202.39,0.03]
[1756546694159,4.75852937,202.41,202.4,0.69]
[1756546694355,0.06,202.42,202.4,0.69]
[1756546694544,4.81852937,202.42,202.4,0.69]
[1756546696471,0.06,202.42,202.41,0.69]
[1756546696669,0.06,202.42,202.41,5.44852937]
[1756546697769,0.06,202.42,202.41,0.69]
[1756546697968,0.06,202.42,202.41,5.63046736]
[1756546698344,0.06,202.42,202.41,0.69]
[1756546698552,0.06,202.42,202.39,4.97072897]
[1756546698553,4.81852937,202.42,202.39,4.97072897]
[1756546698758,4.75852937,202.41,202.39,5.66072897]
[1756546699969,4.75852937,202.41,202.39,0.72]
[1756546700177,4.81852937,202.42,202.39,0.72]
[1756546700872,4.81852937,202.42,202.4,0.69]
[1756546701371,4.75852937,202.41,202.39,0.03]
[1756546701667,4.75852937,202.41,202.4,0.69]
[1756546702282,4.75852937,202.41,202.4,5.63071146]
[1756546702771,4.75852937,202.41,202.4,4.94071146]
[1756546703156,4.75852937,202.41,202.39,4.97094918]
[1756546703764,4.75852937,202.41,202.39,5.66094918]
[1756546707584,0.06,202.42,202.39,0.03]
[1756546707759,0.06,202.42,202.4,0.69]
[1756546708081,0.06,202.42,202.41,13.59559401]
[1756546708254,0.06,202.42,202.41,18.35412338]